Cogmind - Beta 15 @@@ ROGUE MODE // 2025.08.30 @ 08:20:49 Player: shapeshifter Result: Destroyed by B1-FL5(R) with Subdweller Shrapnel Launcher Performance ------------- Evolutions (0) 0 Regions Visited (2) 400 Robots Destroyed (27) 135 Value Destroyed (515) 515 Prototype IDs (0) 0 Alien Tech Used (0) 0 Bonus (0) 0 TOTAL SCORE: 1050 Bonus ------- None Cogmind --------- Core Integrity 0/250 Matter 253/300 Energy 107/125 System Corruption 0% Temperature Cool (0) Movement Core (500) Ox9 Location -10/Subcaves Parts ------- > --- POWER (1) -------- Light Ion Engine > --- PROPULSION (2) --- (None) > --- UTILITY (2) ------ Large Storage Unit Light Armor Plating > --- WEAPON (2) ------- Heavy Riot Gun > --- INVENTORY (15) --- Compact Wheel Subdweller Monowheel Subdweller Monowheel Large Storage Unit High-capacity Matter Pod (0) Structural Scanner EM Pulse Gun EM Pulse Gun Light Assault Rifle Light Assault Rifle Grenade Launcher Makeshift Hammer Peak State ------------ > --- POWER ------------ Light Ion Engine > --- PROPULSION ------- Light Treads Spiked Treads > --- UTILITY ---------- Large Storage Unit Structural Scanner > --- WEAPON ----------- Light Assault Rifle Makeshift Hammer > --- INVENTORY -------- Compact Wheel Subdweller Monowheel Large Storage Unit High-capacity Matter Pod Light Armor Plating EM Pulse Gun EM Pulse Gun Heavy Riot Gun Assault Rifle Light Assault Rifle Light Assault Rifle Grenade Launcher [Rating: 12] Favorites ----------- Power Ion Engine Engine Ion Engine Propulsion Light Treads Treads Light Treads Wheel Wheel Utility Large Storage Unit Device Structural Scanner Storage Large Storage Unit Protection Light Armor Plating Weapon Assault Rifle Energy Gun Heavy Riot Gun Ballistic Gun Assault Rifle Launcher Grenade Launcher Impact Weapon Makeshift Hammer Build | -11 -10 -10 ------- Run | Yrd Mat Sub Slots Evolved . | . . . Power . | . . . Propulsion . | . . . Utility . | . . . Weapon . | . . . Parts Attached 26 | 7 13 6 Power 4 | 1 3 . Engine 4 | 1 3 . Core . | . . . Reactor . | . . . Propulsion 8 | 2 4 2 Treads 4 | 2 . 2 Leg . | . . . Wheel 4 | . 4 . Hover . | . . . Flight . | . . . Utility 6 | 2 4 . Device 2 | 1 1 . Storage 2 | 1 1 . Processor . | . . . Hackware . | . . . Protection 2 | . 2 . Artifact . | . . . Weapon 8 | 2 2 4 Energy Gun 1 | . . 1 Energy Cannon . | . . . Ballistic Gun 4 | 2 1 1 Ballistic Cannon . | . . . Launcher 2 | . 1 1 Special Weapon . | . . . Impact Weapon 1 | . . 1 Slashing Weapon . | . . . Piercing Weapon . | . . . Special Melee Weapon . | . . . Unidentified Prototypes . | . . . Parts Lost 15 | . 5 10 Power 3 | . 2 1 Propulsion 6 | . 2 4 Utility 1 | . 1 . Weapon 5 | . . 5 Highest Loss Streak 5 | . 2 5 To Critical Strikes 1 | . 1 . Average Backups 9 | 2 10 11 Power . | . . . Propulsion 2 | 1 2 1 Utility 1 | . 1 3 Weapon 5 | . 5 6 Tool/Special . | . . . Unused Backups 12 | 1 3 8 Power . | . . . Propulsion 2 | . . 2 Utility 3 | . 1 2 Weapon 7 | 1 2 4 Tool/Special . | . . . Average Slot Usage (%) 96 | . 95 98 Engine 13 | . 13 13 Treads 13 | . 11 15 Wheel 11 | . 12 11 Device 8 | . 7 10 Storage 14 | . 14 14 Protection 5 | . 6 3 Ballistic Gun 27 | . 27 26 Peak Build Rating 12 | 7 8 12 Average Rating 7 | 5 7 8 On Entrance 5 | . 7 8 Naked Turns . | . . . Heaviest Build 32 | 15 32 31 Greatest Support 40 | 40 40 40 Greatest Overweight (x) 3 | . 3 1 Average Overweight (x) . | . 1 . Largest Inventory Capacity 15 | 8 15 15 Average Capacity 12 | 7 12 15 Most Carried 15 | 4 15 13 Average Carried 9 | 2 10 11 Final Capacity 15 | 8 15 15 Final Carried 13 | 3 13 12 Class Distribution -------------------- 100% | Mutant Dominant Class ---------------- Mutant | -10/Materials Mutant | -10/Subcaves Resources | -11 -10 -10 ----------- Run | Yrd Mat Sub Matter Collected 1106 | 312 406 388 Remotely . | . . . Salvage Created 778 | 112 496 170 Parts 42 | 4 25 13 Haulers Intercepted 2 | . 2 . Recyclers Shooed 2 | 1 1 . Parts Field Recycled . | . . . Retrieved Matter . | . . . Parts Self-Destructed 21 | . . 21 Prevented . | . . . Kills | -11 -10 -10 ------- Run | Yrd Mat Sub Combat Hostiles Destroyed 18 | . 12 6 Guns 18 | . 12 6 Classes Destroyed 9 | 2 5 2 Worker 2 | . 2 . Tunneler 1 | 1 . . Hauler 2 | . 2 . Recycler 1 | 1 . . Turret 2 | . . 2 Watcher 1 | . 1 . Swarmer 10 | . 6 4 Grunt 6 | . 6 . Subdweller 2 | . . 2 Best Kill Streak 4 | 2 3 4 Combat Bots Only 3 | . 3 2 Max Kills in Single Turn 2 | 1 1 2 Gunslinging . | . . . Exploded . | . . . Melee . | . . . Uniques/NPCs Destroyed . | . . . Combat | -11 -10 -10 -------- Run | Yrd Mat Sub Hostile Shots Fired 221 | . 92 129 Missed 73 | . 17 56 Hits 148 | . 75 73 Projectile 148 | . 75 73 AOE 4 | . . 4 Critical Strikes 2 | . 2 . Damage Taken 1773 | . 791 982 Core 265 | . 75 190 Absorbed by Shields . | . . . Core Remaining (%) 100 | 100 . . Volleys Fired 115 | 7 66 42 Largest 2 | 2 2 2 Hottest 80 | 40 40 80 Shots Fired 209 | 14 131 64 Gun 198 | 14 130 54 Cannon . | . . . Launcher 11 | . 1 10 Special . | . . . Kinetic 194 | 14 130 50 Thermal . | . . . Explosive 11 | . 1 10 Electromagnetic 4 | . . 4 Robot Hit Streak 20 | 6 16 20 Robot Miss Streak 7 | 2 7 3 Penetration Max . | . . . Secondary Targets 3 | . 3 . Max Gunslinging Chain 1 | . 1 . Shots Hit Robots 126 | 9 76 41 Core Hits 50 | 2 27 21 Critical Kills 1 | 1 . . Critical Parts Destroyed 2 | . 2 . Critical Strikes 3 | 1 2 . Destroy 3 | 1 2 . Melee Attacks 1 | . . 1 Impact 1 | . . 1 Slashing . | . . . Piercing . | . . . Sneak Attacks . | . . . Combat Hostiles . | . . . Follow-up Attacks . | . . . Damage Inflicted 1712 | 105 1006 601 Guns 1439 | 105 1006 328 Cannons . | . . . Explosions 273 | . . 273 Melee . | . . . Ramming . | . . . Kinetic 1365 | 105 1006 254 Thermal . | . . . Explosive 273 | . . 273 Electromagnetic 74 | . . 74 Impact . | . . . Slashing . | . . . Piercing . | . . . Highest Corruption . | . . . Average Corruption . | . . . Corruption Purged . | . . . Corruption Blocked . | . . . Overload Shots . | . . . Overflow Damage 23 | . . 23 Projectiles . | . . . Explosions 23 | . . 23 Melee . | . . . Knockbacks . | . . . Impact . | . . . Kinetic . | . . . Secondary . | . . . Self-Inflicted Damage 40 | . . 40 Shots 1 | . . 1 Rammed . | . . . Targets Rammed . | . . . Kicked . | . . . Crushed . | . . . Highest Temperature 26 | . 26 12 Average Temperature 7 | . 7 6 Received Heat Transfer 684 | . 339 345 Siege Activations . | . . . Martial Activations . | . . . Shielding Activations . | . . . Robots Disrupted . | . . . Combat Hostiles . | . . . Robots Corrupted . | . . . Combat Hostiles . | . . . Parts Fried . | . . . Impact Corruptions . | . . . Robots Melted . | . . . Combat Hostiles . | . . . Parts Melted . | . . . Heat Transferred . | . . . Parts Sabotaged . | . . . Parts Stolen . | . . . Parts Stripped . | . . . Power Chain Reactions . | . . . Alert | -11 -10 -10 ------- Run | Yrd Mat Sub Maximum Alert Level . | . . . Low Security (%) 100 | 100 100 . Level 1 . | . . . Level 2 . | . . . Level 3 . | . . . Level 4 . | . . . Level 5 . | . . . High Security . | . . . Max Security . | . . . Peak Influence 99 | 10 99 . Initial . | . . . Average 24 | . 27 . Influence Increases 732 | 10 452 270 Destroy 0b10 Robot/C 360 | . 240 120 Destroy 0b10 Robot/NC 35 | 10 25 . Destroy Leader 56 | . 56 . Successful Hack 35 | . 35 . Disable Machine 15 | . 15 . Destroy Structure 6 | . 6 . Lose Combat Pursuer 225 | . 75 150 Influence Decreases 732 | 10 452 270 Time Decay 632 | 10 402 220 Lost Part 100 | . 50 50 Squads Dispatched 2 | . 2 . Investigation 1 | . 1 . Extermination . | . . . Reinforcement 1 | . 1 . Assault . | . . . Garrison . | . . . Intercept . | . . . Searches Triggered . | . . . Construction Impeded . | . . . Haulers Reinforced . | . . . Active Scanning Responses . | . . . Cargo Convoy Interrupts . | . . . Stealth | -11 -10 -10 --------- Run | Yrd Mat Sub Distress Signals 1 | . 1 . Communications Jammed . | . . . Distress Signals . | . . . Times Spotted 43 | . 23 20 Peak Tracking Total 6 | . 3 6 Tactical Retreats 6 | . 3 3 Traps | -11 -10 -10 ------- Run | Yrd Mat Sub Traps Triggered 1 | . 1 . Indirectly . | . . . Trap Hack Attempts . | . . . Triggered . | . . . Disarmed . | . . . Reprogrammed . | . . . Reused . | . . . Traps Extracted . | . . . Installed . | . . . Triggered . | . . . Machines | -11 -10 -10 ---------- Run | Yrd Mat Sub Machines Disabled 4 | . 1 3 Max in Single Turn 2 | . 1 2 Machines Repaired . | . . . Machines Dismantled . | . . . Machines Sabotaged . | . . . Overloaded Fab Kills . | . . . Hacking | -11 -10 -10 --------- Run | Yrd Mat Sub Machines Accessed 8 | . 7 1 Terminals 6 | . 6 . Fabricators . | . . . Repair Stations . | . . . Recycling Units 1 | . 1 . Scanalyzers . | . . . Garrison Access . | . . . Total Hacks 21 | . 18 3 Successful 12 | . 9 3 Failed 9 | . 9 . Catastrophic 2 | . 2 . Database Lockouts . | . . . Manual 14 | . 14 . Terminals 15 | . 15 . Fabricators . | . . . Repair Stations . | . . . Recycling Units 3 | . 3 . Scanalyzers . | . . . Garrison Access . | . . . Terminal Hacks 9 | . 6 3 Record 3 | . . 3 Branch Access Points 1 | . 1 . Recall Investigation 1 | . 1 . Registered Components 1 | . 1 . Zone Layout 3 | . 3 . Fabricator Hacks . | . . . Repair Station Hacks . | . . . Recycling Unit Hacks 1 | . 1 . Report Inventory 1 | . 1 . Scanalyzer . | . . . Garrison Access Hacks . | . . . Unauthorized Hacks 2 | . 2 . Terminals 2 | . 2 . Botnet 2 | . 2 . Fabricators . | . . . Repair Stations . | . . . Recycling Units . | . . . Scanalyzers . | . . . Garrison Access . | . . . Data Cores Recovered . | . . . Used . | . . . Hacking Detections 6 | . 6 . Full Trace Events . | . . . Feedback Events . | . . . Feedback Blocked . | . . . Robot Schematics Acquired . | . . . Robots Built . | . . . Authchips . | . . . Time . | . . . Total Robot Build Rating . | . . . Part Schematics Acquired . | . . . Parts Built . | . . . Authchips . | . . . Time . | . . . Total Part Build Rating . | . . . Parts Repaired . | . . . Time . | . . . Parts Recycled . | . . . Recycled Matter . | . . . Retrieved Matter . | . . . Retrieved Components . | . . . Parts Scanalyzed . | . . . Part Schematics Acquired . | . . . Parts Damaged . | . . . Bothacking | -11 -10 -10 ------------ Run | Yrd Mat Sub Used RIF Installer . | . . . Robots Hacked . | . . . Non-combat . | . . . Combat . | . . . Robot Hacks Applied . | . . . Relay Couplers Released . | . . . Fabnet Peak Effective % . | . . . Robots Rewired . | . . . Allies Hacked . | . . . Hacks Repelled . | . . . Allies | -11 -10 -10 -------- Run | Yrd Mat Sub Total Allies . | . . . Largest Group . | . . . Highest-Rated Group . | . . . Highest-Rated Ally . | . . . Total Orders . | . . . Ally Attacks . | . . . Total Damage . | . . . Kills . | . . . Allies Corrupted . | . . . Allies Melted . | . . . Intel | -11 -10 -10 ------- Run | Yrd Mat Sub Active Infowar (turns) 1244 | 16 696 532 Structural 662 | . 130 532 Seismic 582 | 16 566 . Robot Analysis Total . | . . . Derelict Logs Recovered 1 | . . 1 Drone Launches . | . . . Drone Recoveries . | . . . Exploration | -11 -10 -10 ------------- Run | Yrd Mat Sub Turns Passed 2131 | 159 1290 682 Spaces Moved 1164 | 89 688 387 Core 20 | 20 . . Treads 513 | 69 278 166 Legs . | . . . Wheels 631 | . 410 221 Hover . | . . . Flight . | . . . Fastest Speed 50 | 50 95 90 Average Speed 130 | 135 129 130 Slowest Speed 240 | 160 240 160 Overloaded Moves . | . . . Propulsion Burnouts . | . . . Robots Hopped . | . . . Potential Cave-ins . | . . . Cave-ins Triggered . | . . . Exploration Rate (%) 40 | 5 90 26 Regions Visited 2 Branch Regions 1 Pre-discovered Areas . | . . . Known Exits Taken . | . . . Unknown Exits Taken 2 | 1 1 . Scrap Searched 3 | . . 3 Spaces Dug 4 | . 4 . Terrain Destroyed 32 | . 4 28 Melee . | . . . Projectile . | . . . AOE 32 | . 4 28 Terrain Rammed . | . . . Walls Destroyed . | . . . Machines Disabled . | . . . Actions | -11 -10 -10 --------- Run | Yrd Mat Sub Total 1566 | 114 953 499 Wait 205 | . 157 48 Move 1162 | 88 687 387 Hop . | . . . Pick Up 37 | 11 20 6 Fast Attach . | . . . Attach 20 | 7 6 7 Detach . | . . . Swap 18 | . 10 8 Drop 8 | 1 7 . Fire 115 | 7 66 42 Melee 1 | . . 1 Ram . | . . . Kick . | . . . Crush . | . . . Escape Stasis . | . . . Rewire . | . . . Trap . | . . . Miscellaneous . | . . . Route ------- -11/Scrapyard -10/Materials (discovered 5 exits: [*Mat x3] / *Min / *Sub) -10/Subcaves (discovered 1 exit: [*Rec]) History --------- Turn | Location | Event 4 | -11/Scrapyard | Discovered new exit (range 15) 160 | -11/Scrapyard | Entered Materials 230 | -10/Materials | Identified exit to Mines 317 | -10/Materials | Build established: Mutant 349 | -10/Materials | Discovered new exit (range 16) 597 | -10/Materials | Discovered new exit (range 7) 1244 | -10/Materials | Discovered new exit (range 15) 1416 | -10/Materials | Discovered new exit (range 6) 1450 | -10/Materials | Entered Subcaves 1451 | -10/Subcaves | Approached by a straggling Scientist 1462 | -10/Subcaves | Learned Materials trap positions 1503 | -10/Subcaves | Visited Clippyterm 1507 | -10/Subcaves | Learned Factory garrison access intel 1601 | -10/Subcaves | Discovered new exit (range 11) 1675 | -10/Subcaves | Core integrity fell below 50% 1714 | -10/Subcaves | Lost 5 parts (1p2n2w) 1818 | -10/Subcaves | Shifting Twisted Machinery released Mak. Hammer 1820 | -10/Subcaves | Shifting Twisted Machinery released Hvy. Riot Gun 2126 | -10/Subcaves | Core integrity fell below 20% 2132 | -10/Subcaves | Destroyed by B1-FL5(R) with Subdweller Shrapnel Launcher Last Messages --------------- 02045_ Searching scrap... 02045_ Found Sub. Monowheel. 02045_ Found 70 Matter. 02046_ Acquired 70 matter. 02048_ Acquired Sub. Monowheel. 02055_ Subatomizers dissect the Enh. Flamer. 18-CSG(c): "I think it's somewhere northwest of here" 02077_ Subatomizers dissect the Enh. Flamer. 02105_ BK-AB2(R) destroyed. 02112_ Assault Rifle destroyed. 18-CSG(c): "I think it's somewhere northwest of here" 02117_ QO-TB8(R) destroyed. 02121_ Acquired 56 matter. 02123_ Lgt. Treads destroyed. 02127_ Subatomizers dissect the Disposable Heat Sink. 02130_ Lgt. Assault Rifle destroyed. 02131_ Spk. Treads destroyed. Map ----- +----------------------------------------------------+ | ?????????????????????????????????????????????????? | | ?????????????????????????????????????????????????? | | ?????????????????????????????????????????????????? | | ?????????????????????????????????????????????????? | | ?????????????????????????????????????????????????? | | ?????????????????????????????? ???????????????? | | ?????????????????????????????? ???????????????? | | ?????????????????????????????? ???????????????? | | ????????????????????????????? ????????????????? | | ????????????????????????????? ????????????????? | | ????????????????????????????? ?????????????????? | | ???????????????????????????? ??????????????????? | | ???????????#######?????????? #??????????????????? | | ???????????# |# #?????????? ##?????????????????? | | ???????????# & #?????????# #?????????????????? | | ??########?##"&###?#####?## #?##???????????????? | | ??############ ########## ## ## #????????????? | | #### #### # #### ### #????????????? | | ##### ### < < #????????????? | | # ### ### #????????????? | | ### #??????????????????? | | & #??????????????????? | | # ## #??? #?????????????? | | ##### ## # #??????????????? | | ####""### ### ! R #??????????????? | | ""##"""### ### @ R #??????????????? | | ""## # #### ####; # #??????????????? | | ""####### #### ### ;#??? #?????????????? | | ""####### ### # #" ?????????????????? | | ###??# ##### " ; ???????????????? | | ##?? ###?# """"" #### ## #??????????????? | | ####? " #???## # #"""""???? #??##??????????????? | | ### """" ##????####### "?????#??????????????????? | | # ???" ###??????????# ????????????????????????? | | ??????"###???????????## ????????????????????????? | | ??????###?????????????###????????????????????????? | | ?????????????????????????????????????????????????? | | ?????????????????????????????????????????????????? | | ?????????????????????????????????????????????????? | | ?????????????????????????????????????????????????? | | ?????????????????????????????????????????????????? | | ?????????????????????????????????????????????????? | | ?????????????????????????????????????????????????? | | ?????????????????????????????????????????????????? | | ?????????????????????????????????????????????????? | | ?????????????????????????????????????????????????? | | ?????????????????????????????????????????????????? | | ?????????????????????????????????????????????????? | | ?????????????????????????????????????????????????? | | ?????????????????????????????????????????????????? | +----------------------------------------------------+ Best States ------------- Heat Dissipation 25 Energy Generation 10 Energy Capacity 250 Matter Stores 300 Matter Capacity 300 Sight Range 16 Terrain Scan Density 10 Armor Coverage 150 Evasion (%) 50 Recoil Reduction 2 Item Schematics ----------------- None Robot Schematics ------------------ None Fabricated ------------ Nothing Repaired ---------- Nothing Alien Tech Used ----------------- None Achievements -------------- None Challenges ------------ None Game ------ Seed AntimatterDisposableLog Manual? 0 Play Time 00:13:19 Cumulative 230.2 hours Start 2025.08.30 @ 08:10:57 End 2025.08.30 @ 08:20:49 Sessions 1 Manual Loads 0 Difficulty Rogue Special Mode None Game No. 339 Rogue 339 Adventurer 0 Explorer 0 Win Type - Total 4 Types 3/0/1/0/0/0/0/0/0/0 Lore% 81 Gallery% 76 Achievement% 58 Wizard Run 0 Options --------- Layout 1 ASCII 0 Keyboard 0 Movement Mouse Keybinds 0 Fullscreen 1 Font 32/SmallcapsGlow Map View 50x35 Zoom Use 0% Tactical HUD 1 Map Filters NONE Filters NONE Steam 1 RUN: e01e844b-20f9-4890-a0cc-4a0172746f2f